Cogmind - Beta 16 --- EXPLORER MODE // 2025.11.19 @ 14:12:40 Player: K.K.Y. Result: Destroyed by Y-54 Guardian with Flak Gun Performance ------------- Evolutions (3) 1500 Regions Visited (8) 1600 Robots Destroyed (174) 870 Value Destroyed (7535) 7535 Prototype IDs (14) 280 Alien Tech Used (0) 0 Bonus (1833) 1833 TOTAL SCORE: 13618 Bonus ------- High Alert Combat Kills 231 Follower Combat Kills 202 Entered Garrisons 400 Used RIF Installer 1000 Cogmind --------- Core Integrity 0/700 Matter 294/300 Energy 282/290 System Corruption 2% Temperature Cool (22) Movement Walking (175) Ox1 Location -7/Garrison Parts ------- > --- POWER (1) -------- Improved Deuterium Engine > --- PROPULSION (4) --- Aluminum Leg Aluminum Leg Carbon-fiber Leg Carbon-fiber Leg > --- UTILITY (7) ------ Improved Heat Sink Huge Storage Unit Improved Light Armor Plating Hacking Suite Authchip [R/Combat] > --- WEAPON (2) ------- Power Maul Power Maul > --- INVENTORY (25) --- Light Nuclear Core Aluminum Leg Improved Sensor Array Improved Signal Interpreter Advanced Signal Interpreter IFF Parser Improved Terrain Scanner Transport Network Coupler Authchip [R/NC] Authchip [R/Combat] Relay Coupler [NC] (66) Relay Coupler [Swarmer] (42) Relay Coupler [Cutter] (35) Relay Coupler [Grunt] (58) Relay Coupler [Duelist] (41) Relay Coupler [Sentry] (42) Relay Coupler [Demolisher] (28) Relay Coupler [Hunter] (22) Relay Coupler [Heavy] (16) Heavy Ion Cannon Heavy Ion Cannon Flak Gun Remote Datajack Dual-blade Saw Dual-blade Saw Peak State ------------ > --- POWER ------------ Light Angular Momentum Engine > --- PROPULSION ------- Armored Huge Wheel Armored Huge Wheel > --- UTILITY ---------- Improved Heat Sink Huge Storage Unit Machine Analyzer Core Shielding Improved Medium Armor Plating Hacking Suite Authchip [R/Combat] > --- WEAPON ----------- Improved EM Pulse Cannon Gauss Cannon > --- INVENTORY -------- Armored Huge Wheel Weight Redist. System Improved Sensor Array Improved Signal Interpreter Advanced Signal Interpreter IFF Parser Improved Terrain Scanner Transport Network Coupler Authchip [R/NC] Authchip [R/Combat] Relay Coupler [NC] Relay Coupler [Swarmer] Relay Coupler [Cutter] Relay Coupler [Duelist] Relay Coupler [Sentry] Relay Coupler [Demolisher] Relay Coupler [Hunter] Relay Coupler [Heavy] High-powered Field Laser Thermic Laser Improved EM Pulse Cannon Improved EM Pulse Cannon Dual-blade Saw Dual-blade Saw [Rating: 58] Favorites ----------- Power Ion Engine Engine Ion Engine Power Core Nuclear Core Propulsion Aluminum Leg Leg Aluminum Leg Wheel Armored Huge Wheel Hover Unit Aerolev Unit Flight Unit Improved VTOL Module Utility Core Shielding Device Improved Heat Sink Storage Medium Storage Unit Processor Machine Analyzer Hackware Authchip [R/Combat] Protection Core Shielding Weapon Assault Rifle Energy Gun Particle Gun Energy Cannon Improved EM Pulse Cannon Ballistic Gun Assault Rifle Ballistic Cannon Gauss Cannon Impact Weapon Power Maul Slashing Weapon Scythe Build | -11 -10 -10 -10 -8 -8 -8 -7 -7 ------- Run | Yrd Mat Min Sub Mat Gar Mat Fac Gar Slots Evolved 7 | . 1 . . 4 . . 2 . Power . | . . . . . . . . . Propulsion 2 | . . . . 2 . . . . Utility 5 | . 1 . . 2 . . 2 . Weapon . | . . . . . . . . . Parts Attached 127 | 8 8 . 3 38 15 16 18 21 Power 14 | 1 1 . 1 5 2 . 2 2 Engine 11 | 1 1 . 1 4 1 . 1 2 Core 3 | . . . . 1 1 . 1 . Reactor . | . . . . . . . . . Propulsion 48 | 2 3 . 1 12 8 9 8 5 Treads . | . . . . . . . . . Leg 43 | 2 3 . 1 12 8 7 6 4 Wheel 3 | . . . . . . . 2 1 Hover 1 | . . . . . . 1 . . Flight 1 | . . . . . . 1 . . Utility 34 | 2 2 . . 11 4 4 5 6 Device 15 | . 1 . . 8 1 1 2 2 Storage 2 | 1 . . . . 1 . . . Processor 1 | . . . . . 1 . . . Hackware 3 | . . . . . . . 2 1 Protection 13 | 1 1 . . 3 1 3 1 3 Artifact . | . . . . . . . . . Weapon 31 | 3 2 . 1 10 1 3 3 8 Energy Gun 10 | 1 . . 1 6 . . . 2 Energy Cannon 8 | . . . . 2 1 2 1 2 Ballistic Gun 7 | 2 2 . . 1 . . 1 1 Ballistic Cannon 1 | . . . . . . . 1 . Launcher . | . . . . . . . . . Special Weapon . | . . . . . . . . . Impact Weapon 2 | . . . . . . . . 2 Slashing Weapon 3 | . . . . 1 . 1 . 1 Piercing Weapon . | . . . . . . . . . Special Melee Weapon . | . . . . . . . . . Unidentified Prototypes 9 | . . . . 6 . 3 . . Corrupted Parts 1 | . . . . . 1 . . . System Corruption 3 | . . . . . 3 . . . Parts Lost 37 | . 1 . . 3 6 5 9 13 Power 4 | . . . . . . . 2 2 Propulsion 8 | . . . . . 3 . 3 2 Utility 15 | . . . . 1 2 4 2 6 Weapon 10 | . 1 . . 2 1 1 2 3 Highest Loss Streak 7 | . 1 . . 1 2 2 6 7 To Critical Strikes . | . . . . . . . . . Average Backups 13 | 2 4 5 5 9 17 25 24 23 Power . | . . . . . . 1 . . Propulsion . | 1 . . . . . . . 1 Utility 9 | 1 3 4 4 4 12 18 17 16 Weapon 3 | . . 1 1 4 4 5 5 4 Tool/Special . | . . . . . . . . . Unused Backups 43 | . 4 . . 3 6 1 3 26 Power 2 | . . . . . 1 . . 1 Propulsion 5 | . 1 . . . . . 2 2 Utility 26 | . . . . 1 5 1 . 19 Weapon 10 | . 3 . . 2 . . 1 4 Tool/Special . | . . . . . . . . . Average Slot Usage (%) 92 | . 96 100 100 91 97 96 78 73 Engine 8 | . 12 12 12 7 4 7 5 4 Leg 24 | . 25 25 25 27 32 32 10 13 Wheel 1 | . . . . . . . 6 5 Device 8 | . 1 . . 14 16 14 14 5 Storage 9 | . 12 12 12 8 8 8 7 7 Processor 2 | . . . . . 4 8 7 1 Hackware 1 | . . . . . . . 5 14 Protection 15 | . 22 25 25 15 9 7 8 9 Energy Gun 3 | . . . 9 7 3 . . 2 Energy Cannon 3 | . . . . 5 4 8 5 . Ballistic Gun 7 | . 22 25 14 . . . 3 1 Slashing Weapon 2 | . . . . 2 8 7 1 1 Peak Build Rating 58 | 7 10 8 10 29 40 47 58 58 Average Rating 26 | 4 7 8 8 24 33 43 46 44 On Entrance 22 | . 7 8 8 9 29 40 45 55 Avg Prop Armor Cover (%) 15 | . . . . . . 15 . . Naked Turns . | . . . . . . . . . Heaviest Build 116 | 20 23 23 24 41 104 102 112 116 Greatest Support 81 | 20 20 20 20 51 56 81 80 56 Greatest Overweight (x) 33 | 6 1 1 1 3 3 8 5 33 Average Overweight (x) . | 1 . 1 1 . . 1 1 1 Largest Inventory Capacity 25 | 10 10 10 10 10 25 25 25 25 Average Capacity 16 | 8 10 10 10 10 23 25 25 25 Most Carried 25 | 5 10 5 8 10 25 25 25 25 Average Carried 13 | 2 4 5 5 9 17 25 24 23 Final Capacity 25 | 10 10 10 10 10 25 25 25 25 Final Carried 25 | 1 5 5 6 10 25 25 25 25 Class Distribution -------------------- 79% | Hacker-Mutant 20% | Scavenger-Mutant Dominant Class ---------------- Hacker-Mutant | -10/Materials Hacker-Mutant | -10/Mines Hacker-Mutant | -10/Subcaves Scavenger-Mutant | -8/Materials Scavenger-Mutant | -8/Garrison Hacker-Mutant | -8/Materials Hacker-Mutant | -7/Factory Hacker-Mutant | -7/Garrison Resources | -11 -10 -10 -10 -8 -8 -8 -7 -7 ----------- Run | Yrd Mat Min Sub Mat Gar Mat Fac Gar Matter Collected 2726 | 251 294 66 233 547 191 236 444 464 Remotely . | . . . . . . . . . Salvage Created 7541 | . 487 114 233 1928 1284 1229 1196 1070 Parts 350 | . 33 6 11 88 74 50 50 38 Haulers Intercepted 10 | . . . . 6 . 2 2 . Recyclers Shooed . | . . . . . . . . . Parts Field Recycled . | . . . . . . . . . Retrieved Matter . | . . . . . . . . . Parts Self-Destructed . | . . . . . . . . . Prevented . | . . . . . . . . . Parts Restored . | . . . . . . . . . Kills | -11 -10 -10 -10 -8 -8 -8 -7 -7 ------- Run | Yrd Mat Min Sub Mat Gar Mat Fac Gar Combat Hostiles Destroyed 140 | . 11 3 3 27 30 18 25 23 Melee 28 | . . . . 5 16 . 1 6 Guns 52 | . 11 3 3 8 10 . 7 10 Cannons 50 | . . . . 12 4 16 14 4 AOE 2 | . . . . . . . 2 . Classes Destroyed 18 | . 5 . 1 7 3 1 1 . Worker 3 | . . . . . . 2 1 . Tunneler 1 | . . . . 1 . . . . Hauler 10 | . . . . 6 . 2 2 . Recycler 2 | . . . . 1 . 1 . . Mechanic 3 | . 1 . . . 1 1 . . Operator 1 | . . . . 1 . . . . Watcher 10 | . 3 . . 3 1 1 2 . Swarmer 13 | . 2 1 . . 8 . 2 . Cutter 2 | . . . . . 2 . . . Grunt 78 | . 6 2 4 18 14 9 14 11 Brawler 4 | . . . . 1 . 2 . 1 Duelist 4 | . . . . . . . 2 2 Sentry 26 | . . . . 7 5 7 1 6 Specialist 1 | . . . . . 1 . . . Hunter 4 | . . . . 1 . . 3 . Programmer 6 | . . . . . . . 3 3 Artisan 1 | . . . 1 . . . . . Subdweller 4 | . 3 . 1 . . . . . Butcher 2 | . . . . . 1 1 . . Best Kill Streak 6 | . 4 2 2 3 4 3 6 6 Combat Bots Only 6 | . 3 2 2 3 4 3 6 6 Max Kills in Single Turn 2 | . 1 1 1 1 1 2 2 1 Gunslinging . | . . . . . . . . . Exploded 1 | . . . . . . . 1 . Melee 1 | . . . . 1 1 . 1 1 Uniques/NPCs Destroyed . | . . . . . . . . . Combat | -11 -10 -10 -10 -8 -8 -8 -7 -7 -------- Run | Yrd Mat Min Sub Mat Gar Mat Fac Gar Hostile Shots Fired 1145 | . 66 7 9 136 226 124 185 392 Missed 330 | . 20 2 2 42 66 40 59 99 Hits 815 | . 46 5 7 94 160 84 126 293 Melee 16 | . . . . . 6 1 7 2 Projectile 799 | . 46 5 7 94 154 83 119 291 AOE 2 | . . . . . 1 . 1 . Critical Strikes 24 | . . 1 . 4 7 3 3 6 Damage Taken 7497 | . 502 47 86 1014 1391 819 1334 2304 Core 1300 | . 76 16 9 245 174 78 187 515 Absorbed by Shields . | . . . . . . . . . Redirected to Shielding 86 | . 14 3 2 23 . 4 33 7 Ignored by Resistances 4504 | . 307 28 52 548 863 493 802 1411 Core Remaining (%) 56 | 100 . . 59 . . 9 . . Volleys Fired 513 | . 37 5 68 91 76 110 77 49 Largest 2 | . 2 2 2 2 1 1 2 2 Hottest 155 | . 40 40 85 150 69 69 137 155 Shots Fired 771 | . 70 10 136 152 76 111 128 88 Gun 459 | . 70 10 136 82 59 . 30 72 Cannon 312 | . . . . 70 17 111 98 16 Launcher . | . . . . . . . . . Special . | . . . . . . . . . Kinetic 266 | . 70 10 90 . . . 56 40 Thermal 425 | . . . 46 126 59 106 41 47 Explosive . | . . . . . . . . . Electromagnetic 80 | . . . . 26 17 5 31 1 Robot Hit Streak 53 | . 23 4 27 38 18 38 53 49 Robot Miss Streak 2 | . 1 2 1 2 1 2 2 2 Penetration Max . | . . . . . . . . . Secondary Targets 4 | . 2 1 . . . . . 1 Max Gunslinging Chain 1 | . 1 1 . . . . . 1 Shots Hit Robots 645 | . 60 7 33 138 102 105 102 98 Core Hits 348 | . 27 6 12 58 43 35 86 81 Critical Kills . | . . . . . . . . . Critical Parts Destroyed 1 | . . . . . . . . 1 Critical Strikes 40 | . 1 . . 9 13 . 4 13 Burn 20 | . . . . 7 7 . . 6 Destroy 1 | . 1 . . . . . . . Blast 2 | . . . . . . . 2 . Corrupt 1 | . . . . 1 . . . . Smash 1 | . . . . . . . . 1 Sever 15 | . . . . 1 6 . 2 6 Melee Attacks 118 | . . . . 11 71 3 4 29 Impact 12 | . . . . . . . . 12 Slashing 106 | . . . . 11 71 3 4 17 Piercing . | . . . . . . . . . Sneak Attacks 8 | . . . . 1 . 3 . 4 Combat Hostiles . | . . . . . . . . . Follow-up Attacks 1 | . . . . . . . . 1 Damage Inflicted 15236 | . 737 85 389 3193 2580 2293 3316 2643 Guns 5490 | . 737 82 389 1235 839 . 660 1548 Cannons 6055 | . . . . 1500 327 2109 1789 330 Explosions 986 | . . . . 78 135 . 773 . Melee 2661 | . . . . 380 1271 184 61 765 Ramming 44 | . . 3 . . 8 . 33 . Kinetic 3337 | . 737 82 238 . . . 1302 978 Thermal 6956 | . . . 151 2470 839 1984 636 876 Explosive 856 | . . . . . 135 . 721 . Electromagnetic 1382 | . . . . 343 327 125 563 24 Impact 386 | . . . . . . . . 386 Slashing 2275 | . . . . 380 1271 184 61 379 Piercing . | . . . . . . . . . Highest Corruption 4 | . . . . . 3 4 2 2 Average Corruption 2 | . . . . . 3 3 1 2 Corruption Purged . | . . . . . . . . . Corruption Blocked . | . . . . . . . . . Effects 63 | . . . . . 17 24 8 14 Message Errors 13 | . . . . . 4 8 . 1 Matter Fused 16 | . . . . . 6 2 . 8 Heat Flow Errors 9 | . . . . . 2 3 1 3 Energy Discharges 11 | . . . . . 2 4 4 1 Parts Rejected 1 | . . . . . . 1 . . Data Loss (minor) 7 | . . . . . 2 3 1 1 Data Loss (major) 2 | . . . . . 1 1 . . Misfires 2 | . . . . . . 1 1 . Alerts 1 | . . . . . . 1 . . Weapon Failures 1 | . . . . . . . 1 . Overload Shots . | . . . . . . . . . Overflow Damage 473 | . . . . 43 22 35 163 210 Projectiles 120 | . . . . . . 13 107 . Explosions 99 | . . . . 43 . . 56 . Melee 254 | . . . . . 22 22 . 210 Knockbacks 7 | . . . . . . . 5 2 Impact . | . . . . . . . . . Kinetic 7 | . . . . . . . 5 2 Secondary . | . . . . . . . . . Self-Inflicted Damage 53 | . . . . . . . 53 . Shots 1 | . . . . . . . 1 . Rammed 1 | . . . . . . . 1 . Targets Rammed 5 | . . 1 . . 1 . 3 . Kicked 4 | . . 1 . . 1 . 2 . Crushed . | . . . . . . . . . Highest Temperature 756 | . 10 16 . 543 265 255 159 756 Average Temperature 113 | . 3 11 . 87 32 62 55 248 Received Heat Transfer 5073 | . 234 63 . 756 1035 639 639 1707 Effects 38 | . . . . 14 . . . 24 Shutdowns 7 | . . . . 1 . . . 6 Energy Bleed 3 | . . . . . . . . 3 Interference 7 | . . . . 3 . . . 4 Matter Decay 1 | . . . . 1 . . . . Short Circuit 7 | . . . . 4 . . . 3 Damage (minor) 2 | . . . . 1 . . . 1 Damage (major) 9 | . . . . 3 . . . 6 Damage (core) 2 | . . . . 1 . . . 1 Siege Activations . | . . . . . . . . . Martial Activations . | . . . . . . . . . Shielding Activations . | . . . . . . . . . Robots Disrupted 1 | . . . . 1 . . . . Combat Hostiles 1 | . . . . 1 . . . . Robots Corrupted 3 | . . . . . . 1 1 1 Combat Hostiles 3 | . . . . . . 1 1 1 Parts Fried 10 | . . . . 1 4 1 2 2 Impact Corruptions 5 | . . . . . . . . 5 Robots Melted 4 | . . . . 1 . 1 . 2 Combat Hostiles 4 | . . . . 1 . 1 . 2 Parts Melted 34 | . 2 . . 10 4 9 1 8 Heat Transferred 13656 | . . . 370 4614 2368 3589 1036 1679 Parts Sabotaged . | . . . . . . . . . Parts Stolen . | . . . . . . . . . Parts Stripped . | . . . . . . . . . Power Chain Reactions 3 | . . . . 2 . . 1 . Alert | -11 -10 -10 -10 -8 -8 -8 -7 -7 ------- Run | Yrd Mat Min Sub Mat Gar Mat Fac Gar Maximum Alert Level 4 | . . . . . 4 2 . 2 Low Security (%) 66 | 100 100 100 . 100 14 33 100 20 Level 1 16 | . . . . . 12 52 . 68 Level 2 8 | . . . . . 28 14 . 10 Level 3 5 | . . . . . 26 . . . Level 4 3 | . . . . . 17 . . . Level 5 . | . . . . . . . . . High Security . | . . . . . . . . . Max Security . | . . . . . . . . . Peak Influence 1355 | . 85 56 . 98 1355 484 136 420 Initial 484 | . . . . . . 484 31 . Average 209 | . 13 4 . 18 683 258 27 274 Influence Increases 4711 | . 271 108 50 883 1415 569 801 614 Destroy 0b10 Robot/C 2835 | . 160 80 40 540 640 400 500 475 Destroy 0b10 Robot/NC 155 | . 20 . . 65 10 35 25 . Destroy Leader 540 | . 36 20 10 160 20 126 128 40 Allied During Kill 17 | . . 4 . . 7 2 . 4 Trap Triggered on 0b10 20 | . . . . 20 . . . . Successful Hack 113 | . 10 . . 38 32 6 23 4 Disable Machine 48 | . . 4 . 4 . . 40 . Anti-Garrison Action 450 | . . . . . 450 . . . Destroy Structure 176 | . . . . 11 106 . 25 34 Partial Spotted 15 | . . . . . . . . 15 Lose Combat Pursuer 342 | . 45 . . 45 150 . 60 42 Influence Decreases 4291 | . 271 108 50 883 60 1826 899 194 Entered New Map 938 | . . . . . . 871 67 . Time Decay 2957 | . 271 108 50 863 . 885 780 . Lost Part 312 | . . . . 20 60 50 52 130 Lost Ally 84 | . . . . . . 20 . 64 Squads Dispatched 22 | . 1 . . 6 . 3 12 . Investigation 15 | . 1 . . 5 . 2 7 . Extermination 3 | . . . . . . . 3 . Reinforcement 4 | . . . . 1 . 1 2 . Assault . | . . . . . . . . . Garrison . | . . . . . . . . . Intercept . | . . . . . . . . . Searches Triggered . | . . . . . . . . . Construction Impeded . | . . . . . . . . . Haulers Reinforced 1 | . . . . . . . 1 . Active Scanning Responses . | . . . . . . . . . Cargo Convoy Interrupts . | . . . . . . . . . Stealth | -11 -10 -10 -10 -8 -8 -8 -7 -7 --------- Run | Yrd Mat Min Sub Mat Gar Mat Fac Gar Distress Signals 4 | . 2 . . 1 . . 1 . Communications Jammed . | . . . . . . . . . Distress Signals . | . . . . . . . . . Times Spotted 193 | . 18 4 3 42 40 25 35 26 Peak Tracking Total 6 | . 4 2 2 3 4 3 4 6 Tactical Retreats 20 | . 3 . . 2 8 . 4 3 Traps | -11 -10 -10 -10 -8 -8 -8 -7 -7 ------- Run | Yrd Mat Min Sub Mat Gar Mat Fac Gar Traps Triggered 14 | . 1 . . . 6 . 3 4 Indirectly . | . . . . . . . . . Trap Hack Attempts . | . . . . . . . . . Triggered . | . . . . . . . . . Disarmed 1 | . . . . 1 . . . . Reprogrammed 8 | . . . . 4 . . 4 . Reused 2 | . . . . 2 . . . . Traps Extracted . | . . . . . . . . . Installed . | . . . . . . . . . Triggered 2 | . . . . 2 . . . . Machines | -11 -10 -10 -10 -8 -8 -8 -7 -7 ---------- Run | Yrd Mat Min Sub Mat Gar Mat Fac Gar Machines Disabled 18 | . . 1 . 1 6 . 10 . Max in Single Turn 2 | . . 1 . 1 2 . 2 . Garrison Relay 4 | . . . . . 4 . . . Phase Generator 1 | . . . . . 1 . . . Machines Repaired . | . . . . . . . . . Machines Dismantled . | . . . . . . . . . Machines Sabotaged . | . . . . . . . . . Overloaded Fab Kills . | . . . . . . . . . Hacking | -11 -10 -10 -10 -8 -8 -8 -7 -7 --------- Run | Yrd Mat Min Sub Mat Gar Mat Fac Gar Machines Accessed 35 | . 7 . . 9 5 4 8 2 Terminals 28 | . 7 . . 7 5 4 3 2 Fabricators 2 | . . . . . . . 2 . Repair Stations . | . . . . . . . . . Recycling Units . | . . . . . . . . . Scanalyzers 3 | . . . . 1 . . 2 . Garrison Access 2 | . . . . 1 . . 1 . Total Hacks 100 | . 20 . . 32 7 14 24 3 Successful 71 | . 16 . . 26 5 8 14 2 Failed 29 | . 4 . . 6 2 6 10 1 Catastrophic 2 | . . . . 1 . . 1 . Database Lockouts . | . . . . . . . . . Manual . | . . . . . . . . . Terminals 79 | . 20 . . 25 7 14 10 3 Fabricators 3 | . . . . . . . 3 . Repair Stations . | . . . . . . . . . Recycling Units . | . . . . . . . . . Scanalyzers 16 | . . . . 6 . . 10 . Garrison Access 2 | . . . . 1 . . 1 . Terminal Hacks 53 | . 16 . . 19 5 8 3 2 Record 1 | . . . . 1 . . . . Robot Analysis 5 | . 1 . . 2 . 1 1 . Prototype ID Bank 3 | . . . . 3 . . . . Open Door 2 | . . . . . 1 . . 1 Branch Access Points 1 | . 1 . . . . . . . Emergency Access Points 5 | . 2 . . . 1 . 1 1 Scanalyzer Index 1 | . . . . 1 . . . . Alert Level 1 | . 1 . . . . . . . Locate Traps 1 | . 1 . . . . . . . Disarm Traps 2 | . . . . 2 . . . . Reprogram Traps 2 | . . . . 1 . . 1 . Maintenance Status 2 | . . . . 1 . 1 . . Security Status 2 | . 2 . . . . . . . Surveillance Status 1 | . . . . 1 . . . . Patrol Status 3 | . . . . 2 . 1 . . Transport Status 1 | . 1 . . . . . . . Recall Reinforcements 1 | . . . . 1 . . . . Hauler Manifests 4 | . 1 . . 1 . 2 . . Registered Components 2 | . 1 . . 1 . . . . Zone Layout 10 | . 5 . . 2 . 3 . . Garrison Registry 1 | . . . . . 1 . . . Patrol Navigation 1 | . . . . . 1 . . . Security Stations 1 | . . . . . 1 . . . Fabricator Hacks 2 | . . . . . . . 2 . Network Status 1 | . . . . . . . 1 . Build 1 | . . . . . . . 1 . Repair Station Hacks . | . . . . . . . . . Recycling Unit Hacks . | . . . . . . . . . Scanalyzer 14 | . . . . 6 . . 8 . Insert Component 2 | . . . . 1 . . 1 . Analyze 2 | . . . . 1 . . 1 . Retrieve Study 10 | . . . . 4 . . 6 . Garrison Access Hacks 2 | . . . . 1 . . 1 . Unlock Access 2 | . . . . 1 . . 1 . Unauthorized Hacks . | . . . . . . . . . Terminals . | . . . . . . . . . Fabricators . | . . . . . . . . . Repair Stations . | . . . . . . . . . Recycling Units . | . . . . . . . . . Scanalyzers . | . . . . . . . . . Garrison Access . | . . . . . . . . . Data Cores Recovered 1 | . . . . 1 . . . . Used . | . . . . . . . . . Hacking Detections 24 | . 3 . . 7 4 3 7 . Full Trace Events 15 | . 2 . . 5 . 3 5 . Feedback Events 1 | . . . . . . . 1 . Corruption 1 | . . . . . . . 1 . Feedback Blocked . | . . . . . . . . . Robot Schematics Acquired . | . . . . . . . . . Robots Built . | . . . . . . . . . Authchips . | . . . . . . . . . Time . | . . . . . . . . . Total Robot Build Rating . | . . . . . . . . . Part Schematics Acquired 1 | . . . . . . . 1 . Parts Built 2 | . . . . . . . 2 . Authchips . | . . . . . . . . . Time 58 | . . . . . . . 58 . Total Part Build Rating 14 | . . . . . . . 14 . Part Studies Acquired 10 | . . . . 4 . . 6 . Parts Repaired . | . . . . . . . . . Time . | . . . . . . . . . Parts Recycled . | . . . . . . . . . Recycled Matter . | . . . . . . . . . Retrieved Matter . | . . . . . . . . . Retrieved Components . | . . . . . . . . . Parts Scanalyzed 1 | . . . . 1 . . . . Part Schematics Acquired 1 | . . . . . . . 1 . Parts Damaged . | . . . . . . . . . Bothacking | -11 -10 -10 -10 -8 -8 -8 -7 -7 ------------ Run | Yrd Mat Min Sub Mat Gar Mat Fac Gar Used RIF Installer 2 | . . . . . 1 . . 1 Threat Obfuscator 1 | . . . . . . . . 1 Robots Hacked . | . . . . . . . . . Non-combat . | . . . . . . . . . Combat . | . . . . . . . . . Robot Hacks Applied . | . . . . . . . . . Relay Couplers Released 14 | . . . . . 14 . . . Machine Destruction 14 | . . . . . 14 . . . Attached 1 | . . . . . . . . 1 Fabnet Peak Effective % . | . . . . . . . . . Robots Rewired 8 | . . . . 1 3 . . 4 Allies Hacked . | . . . . . . . . . Hacks Repelled . | . . . . . . . . . Allies | -11 -10 -10 -10 -8 -8 -8 -7 -7 -------- Run | Yrd Mat Min Sub Mat Gar Mat Fac Gar Total Allies 11 | . . 3 . 1 3 . . 4 Largest Group 4 | . . 3 3 1 3 2 . 4 Highest-Rated Group 129 | . . 40 40 16 70 45 . 129 Highest-Rated Ally 39 | . . 16 16 16 25 25 . 39 Total Orders 7 | . . . 7 . . . . . ROAM 1 | . . . 1 . . . . . FOLLOW 2 | . . . 2 . . . . . AID 4 | . . . 4 . . . . . Ally Attacks 60 | . . 1 . 12 10 11 . 26 Total Damage 1092 | . . 11 . 193 162 303 . 423 Kills 8 | . . 1 . 1 2 2 . 2 Allies Corrupted . | . . . . . . . . . Allies Melted . | . . . . . . . . . Intel | -11 -10 -10 -10 -8 -8 -8 -7 -7 ------- Run | Yrd Mat Min Sub Mat Gar Mat Fac Gar Active Infowar (turns) 4195 | . 85 . . . 1192 1182 1571 165 Terrain 85 | . 85 . . . . . . . Machine Analysis 4110 | . . . . . 1192 1182 1571 165 Robot Analysis Total 5 | . 1 . . 2 . 1 1 . Derelict Logs Recovered 2 | . . 1 1 . . . . . Drone Launches . | . . . . . . . . . Drone Recoveries . | . . . . . . . . . Exploration | -11 -10 -10 -10 -8 -8 -8 -7 -7 ------------- Run | Yrd Mat Min Sub Mat Gar Mat Fac Gar Turns Passed 12719 | 112 1048 1058 2569 1988 2068 1182 1571 1123 Spaces Moved 5287 | 53 495 543 372 1220 938 463 777 426 Core 48 | 46 . . . . . 1 . 1 Treads . | . . . . . . . . . Legs 4582 | 7 495 543 372 1220 938 458 289 260 Wheels 653 | . . . . . . . 488 165 Hover 4 | . . . . . . 4 . . Flight . | . . . . . . . . . Fastest Speed 50 | 50 120 190 190 105 105 176 105 105 Average Speed 162 | 156 181 190 190 122 171 186 157 155 Slowest Speed 1700 | 350 190 190 190 315 315 450 455 1700 Overloaded Moves . | . . . . . . . . . Propulsion Burnouts . | . . . . . . . . . Robots Hopped . | . . . . . . . . . Potential Cave-ins . | . . . . . . . . . Cave-ins Triggered . | . . . . . . . . . Exploration Rate (%) 53 | 4 94 99 2 67 89 47 24 52 Regions Visited 8 Branch Regions 2 Pre-discovered Areas 1 | . . 1 . . . . . . Known Exits Taken 7 | 1 1 1 1 1 . 1 1 . Unknown Exits Taken . | . . . . . . . . . Scrap Searched . | . . . . . . . . . Spaces Dug . | . . . . . . . . . Terrain Destroyed 108 | . . . . 10 73 . 25 . Melee . | . . . . . . . . . Projectile 9 | . . . . 7 . . 2 . AOE 99 | . . . . 3 73 . 23 . Terrain Rammed . | . . . . . . . . . Walls Destroyed . | . . . . . . . . . Machines Disabled . | . . . . . . . . . Actions | -11 -10 -10 -10 -8 -8 -8 -7 -7 --------- Run | Yrd Mat Min Sub Mat Gar Mat Fac Gar Total 8496 | 80 577 559 2099 1559 1219 668 989 746 Wait 2161 | 12 12 11 1650 125 30 51 91 179 Move 5280 | 52 494 542 371 1219 937 462 777 426 Hop . | . . . . . . . . . Pick Up 105 | 5 14 . 4 21 38 1 6 16 Fast Attach 48 | 5 1 . . 13 . 12 9 8 Attach 40 | 4 2 . . 10 7 . 5 12 Detach 13 | . 1 . . 7 . . 1 4 Swap 54 | . 6 . 3 18 9 11 5 2 Drop 106 | 2 10 . 3 37 16 18 11 9 Fire 513 | . 37 5 68 91 76 110 77 49 Melee 116 | . . . . 11 71 3 4 27 Ram 1 | . . . . . . . 1 . Kick 4 | . . 1 . . 1 . 2 . Crush . | . . . . . . . . . Escape Stasis 33 | . . . . . 25 . . 8 Rewire 22 | . . . . 7 9 . . 6 Trap . | . . . . . . . . . Miscellaneous . | . . . . . . . . . Route ------- -11/Scrapyard -10/Materials (discovered 6 exits: *Mat x3 / *Min x2 / *Sub) -10/Mines (discovered 3 exits: *Mat x2 / *Sub) -10/Subcaves -8/Materials (discovered 3 exits: *Fac x2 / Gar) -8/Garrison (discovered 3 exits: *Mat x3) -8/Materials -7/Factory (discovered 3 exits: Sto / *Low / Gar) -7/Garrison (discovered 2 exits: *Fac x2) History --------- Turn | Location | Event 11 | -11/Scrapyard | Identified exit to Materials 11 | -11/Scrapyard | Discovered exit to Materials (range 16) 113 | -11/Scrapyard | Entered Materials 113 | -10/Materials | Evolved 1 slot: Utility x1 291 | -10/Materials | Identified exit to Mines 291 | -10/Materials | Discovered exit to Mines (range 11) 318 | -10/Materials | Build established: Hacker-Mutant 453 | -10/Materials | Identified exit to Materials 453 | -10/Materials | Discovered exit to Materials (range 16) 613 | -10/Materials | Derelicts attacked the area 712 | -10/Materials | Discovered exit to Materials (range 16) 793 | -10/Materials | Identified exit to Subcaves 793 | -10/Materials | Discovered exit to Subcaves (range 9) 866 | -10/Materials | Discovered exit to Mines (range 15) 1061 | -10/Materials | Discovered exit to Materials (range 11) 1161 | -10/Materials | Entered Mines 1198 | -10/Mines | Assisted by bots powering up and referring to "LRC-V3" 1557 | -10/Mines | Learned location of Zion (-7) 1584 | -10/Mines | Discovered exit to Subcaves (range 6) 1681 | -10/Mines | Discovered exit to Materials (range 13) 1776 | -10/Mines | Discovered exit to Materials (range 5) 2219 | -10/Mines | Entered Subcaves 2219 | -10/Subcaves | Accompanied by 3 allies 2219 | -10/Subcaves | Identified exit to Materials 2219 | -10/Subcaves | Discovered exit to Materials (range 12) 2220 | -10/Subcaves | Approached by a straggling Scientist 4788 | -10/Subcaves | Entered Materials 4788 | -8/Materials | Accompanied by 1 ally 4788 | -8/Materials | Evolved 4 slots: Propulsion x2, Utility x2 5199 | -8/Materials | Identified exit to Factory 5199 | -8/Materials | Discovered exit to Factory (range 5) 6075 | -8/Materials | Discovered exit to Factory (range 16) 6371 | -8/Materials | Build established: Scavenger-Mutant 6773 | -8/Materials | Identified exit to Garrison 6776 | -8/Materials | Entered Garrison 6820 | -8/Garrison | Triggered checkpoint 6866 | -8/Garrison | Learned Materials security intel 6961 | -8/Garrison | Identified exit to Materials 6961 | -8/Garrison | Discovered exit to Materials (range 66) 6961 | -8/Garrison | Discovered exit to Materials (range 74) 6961 | -8/Garrison | Discovered exit to Materials (range 42) 6971 | -8/Garrison | Garrison Relay disabled 7070 | -8/Garrison | Triggered checkpoint 7127 | -8/Garrison | Core integrity fell below 50% 7245 | -8/Garrison | Triggered checkpoint 7442 | -8/Garrison | Triggered checkpoint 7743 | -8/Garrison | Garrison Relay disabled 8203 | -8/Garrison | Garrison Relay disabled 8250 | -8/Garrison | Triggered checkpoint 8444 | -8/Garrison | Triggered checkpoint 8485 | -8/Garrison | Garrison Relay disabled 8570 | -8/Garrison | Installed Relay Interface Framework 8590 | -8/Garrison | Build established: Hacker-Mutant 8783 | -8/Garrison | Phase Generator disabled 8844 | -8/Garrison | Entered Materials 8844 | -8/Materials | Accompanied by 2 allies 9769 | -8/Materials | Core integrity fell below 20% 9827 | -8/Materials | Discovered exit to Factory (range 16) 10026 | -8/Materials | Entered Factory 10026 | -7/Factory | Evolved 2 slots: Utility x2 10027 | -7/Factory | Identified exit to Storage 10384 | -7/Factory | Lost 6 parts (1p3n1u1w) 11012 | -7/Factory | Fabricated Dual-blade Saw (x2) 11253 | -7/Factory | Identified exit to Lower Caves 11253 | -7/Factory | Discovered exit to Lower Caves (range 6) 11597 | -7/Factory | Identified exit to Garrison 11597 | -7/Factory | Entered Garrison 11744 | -7/Garrison | Triggered checkpoint 11786 | -7/Garrison | Lost 3 allies 11809 | -7/Garrison | Triggered checkpoint 11937 | -7/Garrison | Identified exit to Factory 11937 | -7/Garrison | Discovered exit to Factory (range 13) 11975 | -7/Garrison | Triggered checkpoint 11984 | -7/Garrison | Core integrity fell below 50% 12032 | -7/Garrison | Lost 7 parts (1p2n3u1w) 12071 | -7/Garrison | Core integrity fell below 20% 12188 | -7/Garrison | Expanded RIF knowledge: Threat Obfuscation 12403 | -7/Garrison | Triggered checkpoint 12478 | -7/Garrison | Discovered exit to Factory (range 11) 12717 | -7/Garrison | Triggered checkpoint 12720 | -7/Garrison | Destroyed by Y-54 Guardian with Flak Gun Last Messages --------------- 12608_ P-60 Hacker suffers critical hit (Smash). 12608_ Destroyed Imp. Heat Sink. 12608_ P-60 Hacker system corrupted by crushing effect. 12608_ P-60 Hacker destroyed. 12618_ System corrupted: Matter fused (-8). 12620_ Acquired Relay Coupler [Hunter]. 12621_ Discarded Relay Coupler [Hunter]. 12622_ Acquired 18 matter. 12629_ Dropped Relay Coupler [Sentry]. 12629_ Acquired Relay Coupler [Sentry]. 12637_ Dropped Relay Coupler [NC]. 12641_ Acquired Relay Coupler [NC]. 12649_ Dropped Arm. Huge Wheel+. 12650_ Acquired Relay Coupler [Grunt]. 12680_ Acquired Remote Datajack. 12713_ Connecting with Garrison Terminal... 12717_ Beams of light sweep through the air. An alarm sounds. 12718_ System corrupted: Matter fused (-6). Map ----- +----------------------------------------------------+ | | | | | | | | | | | | | | | | | | | | | | | | | ????????????????????????????????????????????? | | ????????????????????????????????????????????? | | ????????????????????????????????????????????? | | ????????????????????????????????????????????? | | ?#########??????????????????????????????????? | | ?# !"%! #??????????????????????????????????? | | ?#=[#=# %#??????????????????????????????????? | | ?#+##*##+#??????????????????????????????????? | | ?#%!# # #???????????????????????##?????????? | | ?# "!" =#??????????###????????"""#?????????? | | #####!###############T######## ##?????????? | | " #?????????? | | + ^ #?????????? | | ################### ###@ #######?????????? | | ???????????????????# #?# Y#???????????????? | | ???????????????????# #?#####???????????????? | | ???????????????????# #?????????????????????? | | ???????????????????# #?????????????????????? | | ???????????????????# #?????????????????????? | | ???????????????????# #?????????????????????? | | ?????????????????### #?????????????????????? | | ?????????????????# #?????????????????????? | | ?????????????????+ < #?????????????????????? | | ?????????????????# #?????????????????????? | | ?????????????????### #?????????????????????? | | ???????????????????# #?????????????????????? | | ???????????????????# #?????????????????????? | | ???????????????????# #?????????????????????? | | ???????????????????# #?????????????????????? | | ???????????????????# #?????????????????????? | | ???????????????????# #?????????????????????? | | ???????????????????# #?????????????????????? | | +##############+#### #?????????????????????? | | #?????????????????????? | | #?????????????????????? | | ######################?????????????????????? | | #??????????????????????????????????????????? | | #??????????????????????????????????????????? | +----------------------------------------------------+ Best States ------------- Heat Dissipation 62 Energy Generation 18 Energy Capacity 290 Matter Stores 300 Matter Capacity 300 Sight Range 16 Terrain Scan Range 16 Terrain Scan Density 10 Additional Mass Support 9 Armor Coverage 375 Resistance: KI 35 Resistance: TH 35 Resistance: EX 35 Resistance: EM 35 Resistance: I 35 Resistance: S 35 Resistance: P 35 Core Shielding 20 Evasion (%) 55 Offensive Hacking 30 Authchip Count 3 Item Schematics ----------------- Transport Network Coupler | -7/Factory | Scanalyzed Robot Schematics ------------------ None Fabricated ------------ Dual-blade Saw | x2 | -7/Factory | Preloaded Repaired ---------- Nothing Studied --------- Aluminum Leg | -8/Materials | Hacked Carbon-fiber Leg | -8/Materials | Hacked Deuterium Engine | -8/Materials | Hacked Hvy. Particle Cannon | -8/Materials | Hacked Blade Saw | -7/Factory | Hacked Imp. Carbon-fiber Leg | -7/Factory | Hacked Imp. EM Pulse Cannon | -7/Factory | Hacked Flak Gun | -7/Factory | Hacked Lgt. Nuclear Core | -7/Factory | Hacked Arm. Huge Wheel | -7/Factory | Hacked Alien Tech Used ----------------- None Achievements -------------- None Challenges ------------ None Game ------ Seed PoweredRemoteTerminator Manual? 0 Play Time 01:12:21 Cumulative 117.1 hours Start 2025.11.19 @ 12:26:52 End 2025.11.19 @ 14:12:40 Sessions 1 Manual Loads 0 Difficulty Explorer Special Mode None Game No. 133 Rogue 0 Adventurer 0 Explorer 133 Win Type - Total 0 Types 0/0/0/0/0/0/0/0/0/0 Lore% 64 Gallery% 63 Achievement% 49 Wizard Run 0 Options --------- Layout 1 ASCII 0 Keyboard 0 Movement Mouse Keybinds 0 Fullscreen 1 Font 24/Smallcaps Map View 50x35 Zoom Use 0% Tactical HUD 1 Map Filters NONE Filters NONE Steam 1 RUN: ac7f4685-62bb-442f-a1c1-6ff39af11580